bitfinex/quotes_BTCUSD_20220211
["timestamp","ask_amount","ask_price","bid_price","bid_amount"]
[1644599480617,0.00065635,43694.0,43692.0,1.1]
[1644599480820,0.00092462,43694.0,43692.0,0.15133566]
[1644599481418,0.00092462,43694.0,43691.0,0.057231]
[1644599481419,0.00065635,43694.0,43691.0,0.057231]
[1644599481617,0.25421118,43693.0,43691.0,0.057231]
[1644599481816,0.00065634,43695.0,43691.0,0.057231]
[1644599482217,0.00092461,43695.0,43691.0,0.057231]
[1644599482882,0.33311834,43692.0,43691.0,0.057231]
[1644599485387,0.6618656,43692.0,43691.0,0.057231]
[1644599485587,0.6618656,43692.0,43686.0,0.11447]
[1644599485588,0.43311834,43692.0,43686.0,0.11447]
[1644599485786,0.47901834,43692.0,43686.0,0.11447]
[1644599485984,0.47928661,43692.0,43686.0,0.11447]
[1644599486187,0.21002776,43690.0,43686.0,0.11447]
[1644599486429,0.30298346,43688.0,43686.0,0.11447]
[1644599486830,0.30298346,43688.0,43672.0,0.54538384]
[1644599486832,0.35,43687.0,43674.0,0.4213935]
[1644599487030,0.13784854,43680.0,43677.0,0.557251]
[1644599487235,0.13784854,43680.0,43677.0,0.5]
[1644599487430,0.057254,43679.0,43677.0,0.5]
[1644599487833,0.00026827,43680.0,43677.0,0.5]
[1644599488030,0.00065642,43681.0,43677.0,0.55725]
[1644599488230,0.00065642,43681.0,43677.0,0.05725]
[1644599488432,0.00092469,43681.0,43677.0,0.05725]
[1644599488831,0.00026827,43685.0,43677.0,0.05725]
[1644599489032,0.34547702,43686.0,43677.0,0.05725]
[1644599489330,0.00065642,43681.0,43677.0,0.05725]
[1644599490032,0.33950707,43681.0,43677.0,0.05725]
[1644599490272,0.00065642,43681.0,43677.0,0.05725]
[1644599491071,0.00039028,43681.0,43677.0,0.05725]
[1644599491273,0.00026827,43685.0,43679.0,0.20471796]
[1644599491475,0.29001836,43689.0,43680.0,0.05724]
[1644599491476,0.00065642,43681.0,43680.0,0.05724]
[1644599492479,0.00026827,43683.0,43680.0,0.05724]
[1644599492675,0.05750927,43684.0,43680.0,0.05724]
[1644599492876,0.057241,43684.0,43680.0,0.05724]
[1644599493577,0.00026827,43688.0,43680.0,0.05724]
[1644599493778,0.00026827,43689.0,43680.0,0.05724]
[1644599494016,0.38266827,43690.0,43681.0,0.05]
[1644599494216,0.00026827,43689.0,43683.0,0.11445534]
[1644599494416,0.66730652,43690.0,43683.0,0.16035534]
[1644599494715,0.00026827,43689.0,43683.0,0.16035534]
[1644599494915,0.38266827,43690.0,43686.0,0.25383022]
[1644599495118,0.00092466,43689.0,43686.0,0.25383022]
[1644599495315,0.00065639,43689.0,43683.0,0.1459]
[1644599495516,0.00065639,43689.0,43687.0,0.057229]
[1644599495717,0.00092466,43689.0,43687.0,0.057229]
[1644599495916,0.00065639,43689.0,43687.0,0.057229]
[1644599496115,0.00026827,43693.0,43687.0,0.057229]
[1644599496418,0.00065638,43690.0,43687.0,0.057229]
[1644599497215,0.00026827,43691.0,43687.0,0.057229]
[1644599497415,0.05749927,43692.0,43687.0,0.057229]
[1644599497672,0.00092464,43691.0,43687.0,0.057229]
[1644599497866,0.00065637,43691.0,43687.0,0.057229]
[1644599498067,0.00092464,43691.0,43687.0,0.057229]
[1644599498266,0.00065637,43691.0,43687.0,0.057229]
[1644599498466,0.00026827,43692.0,43687.0,0.057229]
[1644599498666,0.00065637,43691.0,43687.0,0.057229]
[1644599499666,0.05749827,43692.0,43687.0,0.057229]
[1644599499867,0.00065637,43691.0,43687.0,0.057229]
[1644599500271,0.00092464,43691.0,43687.0,0.057229]
[1644599500867,0.00026827,43692.0,43687.0,0.057229]
[1644599501067,0.00026827,43693.0,43688.0,0.30033592]
[1644599501268,0.00065637,43691.0,43688.0,0.34312939]
[1644599501714,0.00065637,43691.0,43689.0,0.22149746]
[1644599501916,0.00065637,43691.0,43690.0,0.057227]
[1644599502117,0.00026827,43693.0,43690.0,0.057227]
[1644599502314,0.00065636,43692.0,43690.0,0.057227]
[1644599503315,0.00026827,43693.0,43690.0,0.057227]
[1644599503516,0.00065636,43693.0,43691.0,0.28967928]
[1644599503719,0.00065636,43693.0,43692.0,0.057224]
[1644599504118,0.00065636,43693.0,43692.0,0.35824739]
[1644599504322,0.00065636,43693.0,43692.0,0.74727678]
[1644599504521,0.00026827,43698.0,43692.0,0.50414739]
[1644599504719,0.014,43699.0,43697.0,0.057214]
[1644599504920,0.00026827,43698.0,43697.0,0.057214]
[1644599505170,0.014,43699.0,43697.0,0.103114]
[1644599505571,0.014,43699.0,43698.0,0.19481747]
[1644599505769,0.014,43699.0,43698.0,0.24067728]
[1644599506668,0.014,43699.0,43698.0,0.0459]
[1644599506870,0.014,43699.0,43697.0,0.01007772]
[1644599507067,0.014,43699.0,43698.0,0.0459]
[1644599508076,0.014,43699.0,43696.0,0.114428]
[1644599508077,0.064,43699.0,43696.0,0.114428]
[1644599508269,0.064,43699.0,43688.0,0.291922]
[1644599508270,0.30459537,43698.0,43694.0,0.057231]
[1644599508470,0.01426827,43699.0,43692.0,0.114457]
[1644599508669,0.00026827,43698.0,43692.0,0.114457]
[1644599508921,0.22653608,43697.0,43692.0,0.114457]
[1644599509122,0.057229,43695.0,43692.0,0.114457]
[1644599509526,0.057229,43695.0,43688.0,0.057237]
[1644599509723,0.08863836,43694.0,43688.0,0.057237]
[1644599509924,0.30534782,43693.0,43688.0,0.057237]
[1644599510322,0.30561609,43693.0,43688.0,0.057237]
[1644599510524,0.00026827,43693.0,43688.0,0.057237]
[1644599510732,0.05784741,43693.0,43688.0,0.057237]
[1644599510928,0.05811568,43693.0,43688.0,0.057237]
[1644599511724,0.05750427,43693.0,43688.0,0.057237]
[1644599511924,0.058116,43693.0,43688.0,0.057237]
[1644599512677,0.36105151,43689.0,43688.0,0.057237]
[1644599512971,0.27318216,43689.0,43688.0,0.057237]
[1644599514872,0.55801456,43689.0,43688.0,0.057237]
[1644599515072,0.55801456,43689.0,43688.0,0.05684648]
[1644599515271,0.27318216,43689.0,43688.0,0.05684648]
[1644599516172,0.27318216,43689.0,43685.0,0.35798984]
[1644599516417,0.33068943,43689.0,43685.0,0.35798984]
[1644599516617,0.33042116,43689.0,43685.0,0.35798984]
[1644599516817,0.33068943,43689.0,43685.0,0.35798984]
[1644599517218,0.25272329,43688.0,43685.0,0.35798984]
[1644599517819,0.33068943,43689.0,43685.0,0.35798984]
[1644599518018,0.33130537,43689.0,43685.0,0.35798984]
[1644599518218,0.33130537,43689.0,43685.0,0.114468]
[1644599518919,0.05750727,43689.0,43685.0,0.114468]
[1644599519124,0.05750727,43689.0,43687.0,0.24352184]
[1644599519125,0.00026827,43689.0,43687.0,0.24352184]
[1644599519319,0.00061551,43689.0,43688.0,0.24352184]
[1644599519519,0.00061551,43689.0,43688.0,0.18857614]
[1644599520170,0.00026827,43691.0,43688.0,0.18857614]
[1644599520371,0.00061551,43691.0,43688.0,0.24580014]
[1644599521371,0.26957141,43693.0,43688.0,0.057224]
[1644599521568,0.00088377,43692.0,43688.0,0.057224]
[1644599521768,0.0006155,43692.0,43688.0,0.057224]
[1644599522468,0.00026827,43692.0,43688.0,0.057224]
[1644599522668,0.00061554,43692.0,43688.0,0.057224]
[1644599523069,0.00061554,43692.0,43689.0,0.291922]
[1644599523270,0.00061554,43692.0,43691.0,0.05]
[1644599523271,0.00088381,43692.0,43691.0,0.05]
[1644599523472,0.00061554,43692.0,43690.0,0.057219]
[1644599523673,0.00026827,43698.0,43691.0,0.75128746]
[1644599523921,0.00026827,43695.0,43693.0,0.29220821]
[1644599524122,0.00026827,43698.0,43694.0,0.05]
[1644599524321,0.01426827,43699.0,43694.0,0.05]
[1644599524523,0.00026827,43698.0,43695.0,0.057212]
[1644599524720,0.014,43699.0,43695.0,0.057212]
[1644599524721,0.01426827,43699.0,43695.0,0.057212]
[1644599524921,0.01426827,43699.0,43695.0,0.11442362]
[1644599525121,0.01488378,43699.0,43695.0,0.11442362]
[1644599525320,0.00488378,43699.0,43695.0,0.11442362]
[1644599526121,0.00426827,43699.0,43695.0,0.11442362]
[1644599526325,0.00488423,43699.0,43695.0,0.11442362]
[1644599527223,0.00488423,43699.0,43695.0,0.057212]
[1644599527421,0.00426827,43699.0,43695.0,0.057212]
[1644599527675,0.00488423,43699.0,43695.0,0.057212]
[1644599528468,0.00426827,43699.0,43695.0,0.11442839]
[1644599528879,0.00488423,43699.0,43695.0,0.11442839]
[1644599529674,0.00426827,43699.0,43695.0,0.11442839]
[1644599530075,0.00488372,43699.0,43695.0,0.11442839]
[1644599530372,0.00488372,43699.0,43695.0,0.057212]
[1644599530973,0.00426827,43699.0,43695.0,0.057212]
[1644599531432,0.34731783,43696.0,43695.0,0.057212]
[1644599532219,0.00026827,43698.0,43695.0,0.057212]
[1644599532418,0.00061546,43698.0,43695.0,0.057212]
[1644599532819,0.05784046,43698.0,43695.0,0.057212]
[1644599533219,0.05784046,43698.0,43695.0,0.046033]
[1644599533419,0.36321509,43697.0,43695.0,0.046033]
[1644599536366,0.26799491,43696.0,43695.0,0.046033]
[1644599536765,0.36321509,43697.0,43695.0,0.046033]
[1644599537768,0.32689359,43697.0,43695.0,0.046033]
[1644599541020,0.05810877,43698.0,43695.0,0.046033]
[1644599541227,0.0578405,43698.0,43695.0,0.046033]
[1644599541919,0.3454276,43698.0,43695.0,0.046033]
[1644599544891,0.3954276,43698.0,43695.0,0.046033]
[1644599545292,0.057225,43698.0,43695.0,0.046033]
[1644599545494,0.00488377,43699.0,43695.0,0.046033]
[1644599545495,0.06148027,43699.0,43695.0,0.046033]
[1644599545694,0.06209577,43699.0,43695.0,0.046033]
[1644599545892,0.00488377,43699.0,43695.0,0.046033]
[1644599546517,0.00488377,43699.0,43695.0,0.32735486]
[1644599546717,0.06148127,43699.0,43695.0,0.32735486]
[1644599546920,0.06209677,43699.0,43695.0,0.20324582]
[1644599547317,0.06209677,43699.0,43697.0,0.057212]
[1644599547517,0.0618285,43699.0,43697.0,0.057212]
[1644599547918,0.061213,43699.0,43697.0,0.057212]
[1644599548419,0.004,43699.0,43697.0,0.239962]
[1644599548617,0.004,43699.0,43697.0,0.057212]
[1644599548820,0.004,43699.0,43697.0,0.239962]
[1644599549019,0.004,43699.0,43697.0,0.057212]
[1644599549219,0.004,43699.0,43697.0,0.239962]
[1644599549619,0.004,43699.0,43697.0,0.057212]
[1644599553478,0.2706819,43699.0,43697.0,0.057212]
[1644599553676,0.3279029,43699.0,43697.0,0.057212]
[1644599555221,0.061221,43699.0,43697.0,0.057212]
[1644599555420,0.004,43699.0,43697.0,0.057212]
[1644599556220,0.004,43699.0,43698.0,0.25368093]
[1644599556419,0.004,43699.0,43698.0,0.42530893]
[1644599556618,0.004,43699.0,43698.0,0.47530893]
[1644599556819,0.004,43699.0,43698.0,0.52530893]
[1644599557223,0.004,43699.0,43698.0,1.02530893]
[1644599557520,0.004,43699.0,43698.0,1.20805893]
[1644599557787,0.001,43706.0,43698.0,1.20805893]
[1644599557788,0.0012308,43710.0,43706.0,0.06632419]
[1644599557989,0.92555465,43711.0,43708.0,0.3419667]
[1644599558182,0.001,43714.0,43709.0,1.2378667]
[1644599558183,0.00026917,43710.0,43709.0,1.2378667]
[1644599558379,0.001,43714.0,43710.0,0.95]
[1644599558580,0.001,43714.0,43711.0,1.01231933]
[1644599558778,0.001,43714.0,43711.0,0.95475013]
[1644599558979,0.001,43714.0,43711.0,1.01193069]
[1644599559179,0.001,43714.0,43713.0,0.34028563]
[1644599559378,0.001,43714.0,43713.0,0.53618563]
[1644599559578,0.003,43718.0,43714.0,0.9]
[1644599559783,0.003,43718.0,43716.0,0.00382531]
[1644599559979,0.003,43718.0,43717.0,0.0459]
[1644599561281,0.003,43718.0,43717.0,0.5459]
[1644599561720,0.003,43718.0,43717.0,0.6459]
[1644599562325,0.003,43718.0,43717.0,0.93843926]
[1644599562721,0.003,43718.0,43717.0,0.82865]
[1644599563122,0.003,43718.0,43717.0,0.6459]
[1644599564825,0.003,43718.0,43717.0,0.1459]
[1644599565280,0.003,43718.0,43717.0,0.0459]
[1644599566579,0.003,43718.0,43717.0,0.33593972]
[1644599566780,0.003,43718.0,43717.0,0.1459]
[1644599567385,0.003,43718.0,43717.0,0.44174078]
[1644599567979,0.003,43718.0,43717.0,0.94174078]
[1644599568179,0.003,43718.0,43717.0,0.6459]
[1644599568381,0.003,43718.0,43717.0,1.12492355]
[1644599568580,0.003,43718.0,43717.0,0.94217355]
[1644599568780,0.003,43718.0,43717.0,1.12492355]
[1644599569021,0.003,43718.0,43717.0,0.94217355]
[1644599569222,0.003,43718.0,43717.0,1.12492355]
[1644599570424,0.01,43719.0,43718.0,0.00421824]
[1644599570627,0.01,43719.0,43718.0,0.50421824]
[1644599570924,0.01,43719.0,43718.0,0.60421824]
[1644599574674,0.01,43719.0,43718.0,0.77576224]
[1644599575774,0.01,43719.0,43718.0,1.07917334]
[1644599576172,0.01,43719.0,43718.0,1.26192334]
[1644599576457,0.01,43719.0,43718.0,0.95851224]
[1644599576859,0.01,43719.0,43718.0,0.77576224]
[1644599577260,0.01,43719.0,43718.0,0.95851224]
[1644599577460,0.01,43719.0,43718.0,0.77576224]
[1644599577665,0.01,43719.0,43718.0,0.95851224]
[1644599577860,0.01,43719.0,43718.0,0.77576224]
[1644599578061,0.01,43719.0,43718.0,0.95851224]
[1644599578261,0.01,43719.0,43718.0,1.06750595]
[1644599578461,0.01,43719.0,43718.0,1.25025595]
[1644599579061,0.01,43719.0,43718.0,0.95851224]
[1644599579261,0.01,43719.0,43718.0,1.00441224]
[1644599579461,0.01,43719.0,43718.0,0.82166224]
[1644599579662,0.01,43719.0,43718.0,1.00441224]
[1644599579861,0.01,43719.0,43718.0,0.82166224]
[1644599580062,0.01,43719.0,43718.0,1.00441224]
[1644599582476,0.01,43719.0,43718.0,1.29459548]
[1644599582681,0.002,43726.0,43721.0,0.02506135]
[1644599582884,0.001,43732.0,43724.0,0.05]
[1644599583079,0.001,43736.0,43729.0,2.02226192]
[1644599583278,0.00027056,43732.0,43730.0,0.9959]
[1644599583479,0.00127056,43736.0,43730.0,0.9959]
[1644599583677,0.00027056,43735.0,43731.0,0.18275]
[1644599583926,0.00127056,43736.0,43732.0,0.5459]
[1644599584227,0.00127056,43736.0,43732.0,0.5959]
[1644599584228,0.00027056,43735.0,43732.0,0.5959]
[1644599584428,0.06765288,43736.0,43732.0,0.6459]
[1644599584627,0.00127056,43736.0,43732.0,0.6459]
[1644599584827,0.00127056,43736.0,43732.0,0.5459]
[1644599585027,0.00127056,43736.0,43733.0,0.057159]
[1644599585227,0.108171,43736.0,43735.0,0.5]
[1644599585431,0.108171,43736.0,43735.0,0.5459]
[1644599585432,0.50072761,43736.0,43735.0,0.5459]
[1644599585628,0.50045705,43736.0,43735.0,0.5459]
[1644599585829,0.50762805,43736.0,43735.0,0.0459]
[1644599586129,0.05,43735.0,43734.0,0.057172]
[1644599586331,0.50744756,43736.0,43734.0,0.057172]
[1644599586529,0.507177,43736.0,43734.0,0.057172]
[1644599587430,0.75847147,43736.0,43734.0,0.057172]
[1644599587883,0.507177,43736.0,43734.0,0.057172]
[1644599588282,0.29179834,43735.0,43734.0,0.057172]
[1644599588684,0.39179834,43735.0,43734.0,0.057172]
[1644599588882,0.39179834,43735.0,43732.0,0.114317]
[1644599588883,0.114344,43733.0,43732.0,0.114317]
[1644599589383,0.164344,43733.0,43732.0,0.114317]
[1644599589584,0.114344,43733.0,43732.0,0.114317]
[1644599589983,0.07584127,43733.0,43732.0,0.164317]
[1644599590183,0.07584127,43733.0,43732.0,0.22143248]
[1644599590382,0.07584127,43733.0,43732.0,0.67143248]
[1644599590581,0.07584127,43733.0,43732.0,0.72143248]
[1644599590786,0.07584127,43733.0,43732.0,1.00418248]
[1644599590986,0.07584127,43733.0,43732.0,0.82143248]
[1644599591183,0.00027056,43735.0,43733.0,0.7]
[1644599591444,0.00069713,43735.0,43734.0,0.5459]
[1644599591833,0.00069713,43735.0,43734.0,0.82865]
[1644599592033,0.30725601,43739.0,43734.0,0.82865]
[1644599592234,0.30725601,43739.0,43734.0,1.34078771]
[1644599592435,0.30725601,43739.0,43735.0,0.114317]
[1644599592633,0.30725601,43739.0,43736.0,0.5459]
[1644599592833,0.30725601,43739.0,43736.0,0.6459]
[1644599593438,0.30725601,43739.0,43736.0,0.94277675]
[1644599593633,0.30725601,43739.0,43736.0,0.76021558]
[1644599593834,0.30725601,43739.0,43737.0,0.18256117]
[1644599594137,0.30725601,43739.0,43738.0,0.0459]
[1644599594536,0.30725601,43739.0,43738.0,0.5459]
[1644599594735,0.40725601,43739.0,43738.0,0.603057]
[1644599594933,0.35725601,43739.0,43738.0,0.603057]
[1644599595181,0.35725601,43739.0,43738.0,0.057157]
[1644599595775,0.30725601,43739.0,43738.0,0.057157]
[1644599596577,0.30725601,43739.0,43738.0,0.103057]
[1644599596978,0.30725601,43739.0,43738.0,0.40011057]
[1644599597378,0.30725601,43739.0,43738.0,0.50011057]
[1644599597579,0.30725601,43739.0,43738.0,0.203057]
[1644599598179,0.30725601,43739.0,43738.0,0.703057]
[1644599599831,0.004,43743.0,43738.0,0.703057]
[1644599599832,0.001,43746.0,43740.0,1.1]
[1644599600040,0.001,43746.0,43740.0,1.26972305]
[1644599600041,0.00043493,43741.0,43740.0,1.26972305]
[1644599600229,0.00143568,43752.0,43740.0,1.26972305]
[1644599600230,0.7818708,43762.0,43741.0,0.6825643]
[1644599600428,0.05,43759.0,43750.0,0.05714143]
[1644599600629,0.05,43761.0,43751.0,0.0459]
[1644599600830,0.27658458,43754.0,43752.0,0.0459]
[1644599601028,0.32006991,43756.0,43753.0,0.160191]
[1644599601630,0.37006991,43756.0,43753.0,0.160191]
[1644599601832,0.3,43755.0,43753.0,0.160191]
[1644599602030,0.33118099,43754.0,43753.0,0.114291]
[1644599602230,0.34334258,43748.0,43747.0,0.057157]
[1644599602432,0.00048984,43748.0,43747.0,0.057157]
[1644599603090,0.05048984,43748.0,43747.0,0.057157]
[1644599603491,0.00048984,43748.0,43747.0,0.057157]
[1644599604190,0.63520355,43748.0,43747.0,0.057157]
[1644599604791,0.70401273,43748.0,43747.0,0.057157]
[1644599605490,0.75401273,43748.0,43747.0,0.057157]
[1644599605690,0.70401273,43748.0,43747.0,0.057157]
[1644599606090,0.63520355,43748.0,43747.0,0.057157]
[1644599607128,0.34044004,43748.0,43747.0,0.057157]
[1644599607327,0.62272105,43748.0,43747.0,0.057157]
[1644599607930,0.34044004,43748.0,43747.0,0.057157]
[1644599608731,0.75618999,43748.0,43747.0,0.057157]
[1644599609036,0.75618999,43748.0,43745.0,0.00069818]
[1644599609037,0.407171,43747.0,43745.0,0.00069818]
[1644599609229,0.407171,43747.0,43729.0,0.18256392]
[1644599609230,0.3,43746.0,43729.0,0.18256392]
[1644599609431,0.3,43746.0,43727.0,0.17772928]
[1644599609432,0.05,43736.0,43727.0,0.18256392]
[1644599609632,0.06472684,43741.0,43727.0,0.18256392]
[1644599609639,0.29453156,43737.0,43727.0,0.18256392]
[1644599609831,0.29480357,43737.0,43725.0,0.05717433]
[1644599610034,0.25210965,43732.0,43725.0,0.05717433]
[1644599610280,0.057175,43734.0,43730.0,0.114349]
[1644599610478,0.29480357,43737.0,43730.0,0.114349]
[1644599610680,0.00027201,43735.0,43730.0,0.114349]
[1644599610878,0.057175,43736.0,43730.0,0.114349]
[1644599611083,0.057175,43736.0,43722.0,0.16434579]
[1644599611084,0.08101504,43705.0,43698.0,0.03351707]
[1644599611282,0.2,43721.0,43691.0,14.01]
[1644599611283,0.323233,43698.0,43691.0,0.01]
[1644599611480,0.05,43696.0,43691.0,0.01]
[1644599611685,0.17755368,43695.0,43691.0,0.01]
[1644599611881,0.573233,43692.0,43691.0,0.01]
[1644599612082,0.323198,43691.0,43690.0,3.9102]
[1644599612280,0.94563939,43691.0,43690.0,3.9102]
[1644599612479,0.62244139,43691.0,43690.0,3.9102]
[1644599612680,0.91645561,43692.0,43690.0,3.9102]
[1644599612681,0.278987,43692.0,43691.0,0.55]
[1644599612879,0.278987,43692.0,43690.0,4.101613]
[1644599612880,0.057246,43692.0,43690.0,3.9102]
[1644599613082,0.323198,43691.0,43690.0,3.9102]
[1644599613281,0.373198,43691.0,43690.0,3.9102]
[1644599613679,0.69771109,43691.0,43690.0,3.9102]
[1644599613926,0.37451309,43691.0,43690.0,3.9102]
[1644599614127,0.057246,43692.0,43690.0,3.9102]
[1644599614128,0.171718,43692.0,43690.0,3.9102]
[1644599614429,0.29996956,43691.0,43690.0,3.9102]
[1644599614625,0.171718,43692.0,43690.0,3.9102]
[1644599615226,0.26677018,43691.0,43690.0,3.9102]
[1644599615828,0.66722803,43691.0,43690.0,3.9102]
[1644599616429,0.71722803,43691.0,43690.0,3.9102]
[1644599616628,0.66722803,43691.0,43690.0,4.101613]
[1644599616831,0.40045785,43691.0,43690.0,3.9102]
[1644599617429,0.72365585,43691.0,43690.0,3.9102]
[1644599617883,0.40045785,43691.0,43690.0,3.9102]
[1644599618683,0.221718,43692.0,43690.0,3.9102]
[1644599618887,0.057246,43692.0,43690.0,4.101613]
[1644599619087,0.057246,43692.0,43691.0,0.191408]
[1644599619286,0.057246,43692.0,43690.0,3.9102]
[1644599619690,0.33745892,43692.0,43690.0,3.9102]
[1644599619888,0.114461,43693.0,43690.0,3.9102]
[1644599620088,0.164461,43693.0,43690.0,3.9102]
[1644599620289,0.05,43693.0,43690.0,3.9102]
[1644599620893,0.37233019,43693.0,43690.0,3.9102]
[1644599621290,0.37233019,43693.0,43692.0,0.191402]
[1644599621527,0.057232,43692.0,43690.0,3.9102]
[1644599621923,0.057232,43692.0,43691.0,0.191407]
[1644599622725,0.057232,43692.0,43690.0,3.91089727]
[1644599622926,0.057232,43692.0,43691.0,0.191407]
[1644599623727,0.057232,43692.0,43690.0,3.9102]
[1644599626285,0.3635,43720.0,43694.0,0.05]
[1644599626481,0.3635,43720.0,43698.0,0.02371772]
[1644599626482,0.05,43718.0,43698.0,0.02371772]
[1644599626678,0.05,43718.0,43701.0,0.191341]
[1644599626679,0.057195,43718.0,43701.0,0.191341]
[1644599626878,0.057195,43718.0,43702.0,0.0459]
[1644599626879,0.27788979,43713.0,43702.0,0.0459]
[1644599627078,0.27788979,43713.0,43703.0,0.191334]
[1644599627079,0.34303244,43705.0,43703.0,0.191334]
[1644599627277,0.34303244,43705.0,43704.0,0.0459]
[1644599627483,0.06558579,43712.0,43704.0,0.237232]
[1644599627880,0.07730668,43705.0,43704.0,0.237232]
[1644599628081,0.28481515,43703.0,43702.0,0.00069756]
[1644599628481,0.28481515,43703.0,43702.0,0.04659756]
[1644599628681,0.33481515,43703.0,43702.0,0.00069756]
[1644599628938,0.88337353,43703.0,43702.0,0.00069756]
[1644599629141,0.88337353,43703.0,43698.0,0.02371772]
[1644599629142,0.114454,43702.0,43698.0,0.02371772]
[1644599629341,0.114454,43702.0,43700.0,0.00069757]
[1644599629639,0.05,43701.0,43700.0,0.00069757]
[1644599630240,0.05,43701.0,43691.0,0.18272278]
[1644599630241,0.057224,43699.0,43691.0,0.18272278]
[1644599630444,0.05,43695.0,43691.0,0.18272278]
[1644599630742,0.66153348,43694.0,43690.0,3.9102]
[1644599630942,0.323184,43693.0,43690.0,3.9102]
[1644599631147,0.33834948,43694.0,43690.0,1.52936955]
[1644599631148,0.573184,43691.0,43690.0,1.52936955]
[1644599631342,1.33691211,43691.0,43690.0,1.52936955]
[1644599631542,0.76372811,43691.0,43690.0,1.52936955]
[1644599631743,0.76372811,43691.0,43690.0,1.52146955]
[1644599632546,1.0549212,43691.0,43690.0,1.52146955]
[1644599633183,0.8049212,43691.0,43690.0,1.52146955]
[1644599634684,0.7049212,43691.0,43690.0,1.52146955]
[1644599634884,0.8049212,43691.0,43690.0,1.52146955]
[1644599636930,1.2049212,43691.0,43690.0,1.52146955]
[1644599637130,0.15,43689.0,43688.0,7.64e-06]
[1644599637333,0.49779484,43689.0,43688.0,7.64e-06]
[1644599637534,0.15,43685.0,43681.0,0.01]
[1644599637740,0.15,43685.0,43672.0,0.00020228]
[1644599637741,0.42999144,43682.0,43672.0,0.00020228]
[1644599637934,0.42999144,43682.0,43660.0,0.1]
[1644599637935,0.07429649,43673.0,43667.0,0.00020228]
[1644599638135,0.27857142,43672.0,43667.0,0.00020228]
[1644599638333,0.27857142,43672.0,43660.0,0.1]
[1644599638334,0.32857142,43672.0,43662.0,0.00020228]
[1644599638734,0.05,43685.0,43672.0,1.0]
[1644599638936,0.42,43689.0,43674.0,0.057245]
[1644599638937,0.20064,43686.0,43674.0,0.057245]
[1644599639136,0.20064,43686.0,43682.0,0.05]
[1644599639334,0.20064,43686.0,43683.0,0.0459]
[1644599639533,0.20064,43686.0,43684.0,0.0459]
[1644599639735,0.20064,43686.0,43685.0,0.0459]
[1644599641883,0.114461,43695.0,43685.0,0.0459]
[1644599641884,0.3647,43697.0,43685.0,0.39382912]
[1644599642186,0.02176,43698.0,43690.0,0.2987634]
[1644599642487,0.28481515,43703.0,43697.0,0.53070703]
[1644599642682,0.20088,43723.0,43691.0,0.3959]
[1644599642683,0.20088,43723.0,43702.0,0.48070703]
[1644599642887,0.20088,43723.0,43703.0,0.0459]
[1644599642888,0.00348646,43710.0,43703.0,0.0459]
[1644599643283,0.26305207,43707.0,43703.0,0.0459]
[1644599643483,0.00348646,43710.0,43705.0,0.057207]
[1644599643683,0.00348646,43710.0,43703.0,0.0459]
[1644599644341,0.00065923,43710.0,43703.0,0.0459]
[1644599644744,0.35213001,43709.0,43703.0,0.0459]
[1644599645341,0.30213001,43709.0,43703.0,0.0459]
[1644599645741,0.35213001,43709.0,43703.0,0.0459]
[1644599646342,0.06598577,43704.0,43703.0,0.0459]
[1644599646545,0.06598577,43704.0,43691.0,0.3041582]
[1644599646546,0.06598577,43704.0,43698.0,1.30530512]
[1644599647340,0.40213001,43709.0,43698.0,1.65208305]
[1644599647341,0.28892774,43700.0,43698.0,1.65208305]
[1644599647792,0.28892774,43700.0,43698.0,1.30530512]
[1644599648195,0.323184,43699.0,43698.0,1.30530512]
[1644599648392,0.39396111,43699.0,43698.0,1.30530512]
[1644599648592,0.53482774,43700.0,43698.0,1.30530512]
[1644599648791,0.48482774,43700.0,43698.0,1.30530512]
[1644599648994,0.38482774,43700.0,43698.0,1.30530512]
[1644599649192,0.43482774,43700.0,43698.0,1.30530512]
[1644599649391,0.13890284,43700.0,43698.0,1.30530512]
[1644599649892,0.09300284,43700.0,43698.0,1.30530512]
[1644599650294,0.05,43700.0,43698.0,1.30530512]
[1644599650495,0.32288415,43701.0,43698.0,1.30530512]
[1644599651297,0.43011415,43701.0,43689.0,0.57845444]
[1644599651524,0.43011415,43701.0,43691.0,0.20262629]
[1644599652326,0.43011415,43701.0,43689.0,0.37781934]
[1644599652727,0.43011415,43701.0,43687.0,0.05723]
[1644599652929,0.43011415,43701.0,43686.0,0.00062283]
[1644599652930,0.057235,43698.0,43686.0,0.00062283]
[1644599653129,0.057236,43697.0,43686.0,0.00062283]
[1644599653333,0.057236,43697.0,43682.0,0.50727908]
[1644599653334,0.07429697,43696.0,43682.0,0.50727908]
[1644599653529,0.05,43695.0,43686.0,0.00062247]
[1644599653729,0.4654699,43697.0,43686.0,0.00062247]
[1644599654131,0.25059394,43692.0,43686.0,0.00062247]
[1644599654332,0.30059394,43692.0,43686.0,0.00062247]
[1644599654534,0.30059394,43692.0,43684.0,0.26134934]
[1644599654735,0.25059394,43692.0,43686.0,0.00062231]
[1644599654934,0.25050903,43692.0,43686.0,0.00062231]
[1644599655790,0.25050903,43692.0,43686.0,0.00062229]
[1644599656694,0.35050903,43692.0,43686.0,0.00062229]
[1644599656893,0.35050903,43692.0,43682.0,0.00020228]
[1644599656894,0.35,43690.0,43682.0,0.00020228]
[1644599657092,0.35,43690.0,43686.0,0.00062233]
[1644599657093,0.057259,43687.0,43686.0,0.00062233]
[1644599657292,0.1338452,43687.0,43686.0,0.00062233]
[1644599657492,0.1,43687.0,43686.0,0.00062233]
[1644599657693,0.05,43689.0,43686.0,0.00062233]
[1644599657694,0.1,43689.0,43686.0,0.00062233]
[1644599657892,0.29820001,43687.0,43686.0,0.00062233]
[1644599658094,0.05725974,43681.0,43676.0,0.00020228]
[1644599658293,0.05725974,43681.0,43671.0,0.01]
[1644599658294,0.11451974,43681.0,43674.0,0.00020228]
[1644599658497,0.11451974,43681.0,43675.0,0.00249003]
[1644599659353,0.16451974,43681.0,43672.0,0.00020228]
[1644599659552,0.16451974,43681.0,43671.0,0.01]
[1644599659756,0.3329534,43679.0,43671.0,0.01020228]